Cogmind - Beta 11.1 *** ADVENTURER MODE // 2022.07.07 @ 06:07:18 Player: Olexender Result: Core destroyed Performance ------------- Evolutions (0) 0 Regions Visited (2) 400 Robots Destroyed (28) 140 Value Destroyed (442) 442 Prototype IDs (4) 80 Alien Tech Used (0) 0 Bonus (0) 0 TOTAL SCORE: 1062 Bonus ------- None Cogmind --------- Core Integrity 0/250 Matter 300/300 Energy 99/100 System Corruption 1% Temperature Cool (0) Movement Core (50) Location -10/Mines Parts ------- > --- POWER (1) -------- (None) > --- PROPULSION (2) --- (None) > --- UTILITY (2) ------ (None) > --- WEAPON (2) ------- (None) > --- INVENTORY (5) ---- Aluminum Leg Compact Wheel Medium Storage Unit Small Battery (100) High-capacity Matter Pod (200) Peak State ------------ > --- POWER ------------ Ion Engine > --- PROPULSION ------- Aluminum Leg Aluminum Leg > --- UTILITY ---------- Improved Terrain Scanner Seismic Detector > --- WEAPON ----------- Particle Gun Makeshift Shrapnel Gun > --- INVENTORY -------- Aluminum Leg Compact Wheel Medium Storage Unit Small Battery High-capacity Matter Pod [Rating: 13] Favorites ----------- Power Ion Engine Engine Ion Engine Propulsion Aluminum Leg Leg Aluminum Leg Utility Seismic Detector Device Seismic Detector Weapon Light Assault Rifle Energy Gun Particle Gun Ballistic Gun Light Assault Rifle Build | -11 -10 -10 ------- Run | Scr Mat Min Slots Evolved . | . . . Power . | . . . Propulsion . | . . . Utility . | . . . Weapon . | . . . Parts Attached 14 | 8 3 3 Power 1 | 1 . . Engine 1 | 1 . . Core . | . . . Reactor . | . . . Propulsion 4 | 2 . 2 Treads . | . . . Leg 4 | 2 . 2 Wheel . | . . . Hover . | . . . Flight . | . . . Utility 3 | 2 1 . Device 3 | 2 1 . Storage . | . . . Processor . | . . . Hackware . | . . . Protection . | . . . Artifact . | . . . Weapon 6 | 3 2 1 Energy Gun 3 | 2 1 . Energy Cannon . | . . . Ballistic Gun 3 | 1 1 1 Ballistic Cannon . | . . . Launcher . | . . . Special Weapon . | . . . Impact Weapon . | . . . Slashing Weapon . | . . . Piercing Weapon . | . . . Special Melee Weapon . | . . . Unidentified Prototypes . | . . . Parts Lost 7 | . 1 6 Power 1 | . . 1 Propulsion 1 | . . 1 Utility 3 | . 1 2 Weapon 2 | . . 2 Highest Loss Streak 6 | . 1 6 To Critical Strikes . | . . . Average Slot Usage (%) 95 | . 98 87 Engine 13 | . 14 11 Leg 27 | . 28 25 Device 26 | . 27 24 Energy Gun 13 | . 14 12 Ballistic Gun 13 | . 14 12 Naked Turns 54 | . . 54 Heaviest Build 12 | 10 11 12 Greatest Support 20 | 20 20 20 Greatest Overweight (x) . | . . . Average Overweight (x) . | . . . Largest Inventory Capacity 5 | 5 5 5 Average Capacity 5 | 5 5 5 Most Carried 5 | 5 5 5 Average Carried 4 | 4 4 5 Final Capacity 5 | 5 5 5 Final Carried 5 | 5 5 5 Class Distribution -------------------- 91% | Mutant 8% | Scavenger-Mutant Dominant Class ---------------- Mutant | -10/Materials Mutant | -10/Mines Resources | -11 -10 -10 ----------- Run | Scr Mat Min Matter Collected 742 | 295 423 24 Remotely . | . . . Salvage Created 919 | 192 619 108 Parts 53 | 13 37 3 Haulers Intercepted 2 | . 2 . Recyclers Shooed 1 | . 1 . Parts Field Recycled . | . . . Retrieved Matter . | . . . Parts Self-Destructed . | . . . Prevented . | . . . Kills | -11 -10 -10 ------- Run | Scr Mat Min Combat Hostiles Destroyed 15 | . 11 4 Guns 15 | . 11 4 Classes Destroyed 8 | 2 5 1 Worker 2 | . 2 . Tunneler 6 | 5 1 . Hauler 2 | . 2 . Recycler 2 | 1 1 . Watcher 3 | . 3 . Swarmer 6 | . 6 . Grunt 7 | . 5 2 Assembled 2 | . . 2 Best Kill Streak 4 | 3 4 2 Combat Bots Only 4 | . 4 2 Max Kills in Single Turn 2 | 1 1 2 Gunslinging 1 | . . 1 Exploded . | . . . Melee . | . . . Uniques/NPCs Destroyed . | . . . Combat | -11 -10 -10 -------- Run | Scr Mat Min Damage Taken 821 | . 281 540 Core 251 | . 42 209 Absorbed by Shields . | . . . Core Remaining (%) 100 | 100 . . Volleys Fired 99 | 19 72 8 Largest 2 | 2 2 2 Hottest 89 | 70 85 89 Shots Fired 172 | 38 117 17 Gun 172 | 38 117 17 Cannon . | . . . Launcher . | . . . Special . | . . . Kinetic 99 | 19 72 8 Thermal 73 | 19 45 9 Explosive . | . . . Electromagnetic . | . . . Robot Hit Streak 22 | 5 22 10 Robot Miss Streak 2 | 2 2 2 Penetration Max . | . . . Secondary Targets 4 | . 3 1 Max Gunslinging Chain 1 | . 1 1 Shots Hit Robots 125 | 24 89 12 Core Hits 53 | 10 35 8 Critical Kills 1 | . 1 . Critical Parts Destroyed 1 | 1 . . Critical Strikes 9 | 2 7 . Burn 7 | 1 6 . Destroy 2 | 1 1 . Melee Attacks . | . . . Impact . | . . . Slashing . | . . . Piercing . | . . . Sneak Attacks . | . . . Combat Hostiles . | . . . Follow-up Attacks . | . . . Damage Inflicted 1400 | 265 930 205 Guns 1394 | 265 930 199 Cannons . | . . . Explosions . | . . . Melee . | . . . Ramming 6 | . . 6 Kinetic 663 | 104 438 121 Thermal 731 | 161 492 78 Explosive . | . . . Electromagnetic . | . . . Impact . | . . . Slashing . | . . . Piercing . | . . . Highest Corruption 1 | . 1 1 Average Corruption 1 | . 1 1 Corruption Purged . | . . . Corruption Blocked . | . . . Effects 14 | . 7 7 Message Errors 1 | . . 1 Matter Fused 3 | . 3 . Heat Flow Errors 1 | . . 1 Energy Discharges 1 | . 1 . Data Loss (minor) 3 | . 2 1 Data Loss (major) 2 | . 1 1 Misfires 1 | . . 1 Alerts 2 | . . 2 Overload Shots . | . . . Overflow Damage . | . . . Projectiles . | . . . Explosions . | . . . Melee . | . . . Knockbacks . | . . . Impact . | . . . Kinetic . | . . . Secondary . | . . . Self-Inflicted Damage 3 | . . 3 Shots . | . . . Rammed 1 | . . 1 Targets Rammed 1 | . . 1 Kicked . | . . . Crushed . | . . . Highest Temperature 220 | 80 220 151 Average Temperature 61 | 26 74 65 Received Heat Transfer 102 | . 87 15 Effects 3 | . 3 . Interference 3 | . 3 . Siege Activations . | . . . Robots Corrupted . | . . . Combat Hostiles . | . . . Parts Fried . | . . . Impact Corruptions . | . . . Robots Melted 1 | . 1 . Combat Hostiles . | . . . Parts Melted 4 | 1 3 . Heat Transferred 2553 | 555 1813 185 Parts Sabotaged . | . . . Parts Stolen . | . . . Parts Stripped . | . . . Power Chain Reactions . | . . . Missiles Intercepted . | . . . Alert | -11 -10 -10 ------- Run | Scr Mat Min Peak Influence 289 | 30 289 72 Initial 16 | . 16 13 Average 73 | 14 102 29 Maximum Alert Level 1 | . 1 . Low Security (%) 93 | 100 89 100 Level 1 6 | . 10 . Level 2 . | . . . Level 3 . | . . . Level 4 . | . . . Level 5 . | . . . High Security . | . . . Max Security . | . . . Squads Dispatched 2 | . 2 . Investigation 2 | . 2 . Extermination . | . . . Reinforcement . | . . . Assault . | . . . Garrison . | . . . Intercept . | . . . Searches Triggered . | . . . Construction Impeded . | . . . Haulers Reinforced . | . . . Active Scanning Responses . | . . . Cargo Convoy Interrupts . | . . . Stealth | -11 -10 -10 --------- Run | Scr Mat Min Distress Signals 2 | . 2 . Communications Jammed . | . . . Distress Signals . | . . . Times Spotted 39 | . 17 22 Peak Tracking Total 11 | . 5 11 Tactical Retreats 1 | . . 1 Traps | -11 -10 -10 ------- Run | Scr Mat Min Traps Triggered 5 | . 5 . Indirectly . | . . . Trap Hack Attempts . | . . . Triggered . | . . . Disarmed 2 | . 2 . Reprogrammed . | . . . Reused . | . . . Traps Extracted . | . . . Installed . | . . . Triggered . | . . . Machines | -11 -10 -10 ---------- Run | Scr Mat Min Machines Disabled 1 | . . 1 Max in Single Turn 1 | . . 1 Machines Sabotaged . | . . . Garrisons Compromised . | . . . Overloaded Fab Kills . | . . . Hacking | -11 -10 -10 --------- Run | Scr Mat Min Machines Accessed 7 | . 7 . Terminals 6 | . 6 . Fabricators . | . . . Repair Stations . | . . . Recycling Units 1 | . 1 . Scanalyzers . | . . . Garrison Access . | . . . Total Hacks 20 | . 20 . Successful 10 | . 10 . Failed 10 | . 10 . Catastrophic 1 | . 1 . Database Lockouts . | . . . Manual . | . . . Terminals 17 | . 17 . Fabricators . | . . . Repair Stations . | . . . Recycling Units 3 | . 3 . Scanalyzers . | . . . Garrison Access . | . . . Terminal Hacks 8 | . 8 . Prototype ID Bank 2 | . 2 . Branch Access Points 1 | . 1 . Disarm Traps 1 | . 1 . Dispatch Records 1 | . 1 . Surveillance Status 1 | . 1 . Registered Prototypes 1 | . 1 . Zone Layout 1 | . 1 . Fabricator Hacks . | . . . Repair Station Hacks . | . . . Recycling Unit Hacks 2 | . 2 . Report Inventory 1 | . 1 . Retrieve Components 1 | . 1 . Scanalyzer . | . . . Garrison Access Hacks . | . . . Unauthorized Hacks . | . . . Terminals . | . . . Fabricators . | . . . Repair Stations . | . . . Recycling Units . | . . . Scanalyzers . | . . . Garrison Access . | . . . Data Cores Recovered . | . . . Used . | . . . Hacking Detections 6 | . 6 . Full Trace Events 2 | . 2 . Feedback Events . | . . . Feedback Blocked . | . . . Robot Schematics Acquired . | . . . Robots Built . | . . . Authchips . | . . . Time . | . . . Total Robot Build Rating . | . . . Part Schematics Acquired . | . . . Parts Built . | . . . Authchips . | . . . Time . | . . . Total Part Build Rating . | . . . Parts Repaired . | . . . Time . | . . . Parts Recycled . | . . . Recycled Matter . | . . . Retrieved Matter . | . . . Retrieved Components 10 | . 10 . Parts Scanalyzed . | . . . Part Schematics Acquired . | . . . Parts Damaged . | . . . Bothacking | -11 -10 -10 ------------ Run | Scr Mat Min Used RIF Installer . | . . . Robots Hacked . | . . . Non-combat . | . . . Combat . | . . . Robot Hacks Applied . | . . . Relay Couplers Released . | . . . Fabnet Peak Effective % . | . . . Robots Rewired . | . . . Allies Hacked . | . . . Hacks Repelled . | . . . Allies | -11 -10 -10 -------- Run | Scr Mat Min Total Allies . | . . . Largest Group . | . . . Highest-Rated Group . | . . . Highest-Rated Ally . | . . . Total Orders . | . . . Ally Attacks . | . . . Total Damage . | . . . Kills . | . . . Allies Corrupted . | . . . Allies Melted . | . . . Intel | -11 -10 -10 ------- Run | Scr Mat Min Robot Analysis Total . | . . . Derelict Logs Recovered . | . . . Drone Launches . | . . . Drone Recoveries . | . . . Exploration | -11 -10 -10 ------------- Run | Scr Mat Min Turns Passed 1854 | 206 1168 480 Spaces Moved 1268 | 122 748 398 Core 108 | 19 . 89 Treads . | . . . Legs 1160 | 103 748 309 Wheels . | . . . Hover . | . . . Flight . | . . . Fastest Speed 50 | 50 120 50 Average Speed 114 | 109 120 104 Slowest Speed 120 | 120 120 120 Overloaded Moves . | . . . Propulsion Burnouts . | . . . Robots Hopped . | . . . Cave-ins Triggered . | . . . Exploration Rate (%) 57 | 4 93 76 Regions Visited 2 Branch Regions 1 Pre-discovered Areas . | . . . Known Exits Taken 1 | . 1 . Unknown Exits Taken 1 | 1 . . Scrap Searched 1 | . . 1 Spaces Dug . | . . . Terrain Destroyed . | . . . Melee . | . . . Projectile . | . . . AOE . | . . . Terrain Rammed . | . . . Walls Destroyed . | . . . Machines Disabled . | . . . Actions | -11 -10 -10 --------- Run | Scr Mat Min Total 1524 | 158 917 449 Wait 119 | . 83 36 Move 1266 | 121 747 398 Hop . | . . . Pick Up 14 | 8 6 . Fast Attach 7 | 6 1 . Attach 1 | 1 . . Detach . | . . . Swap 6 | 1 2 3 Drop 12 | 2 6 4 Fire 99 | 19 72 8 Melee . | . . . Ram . | . . . Kick . | . . . Crush . | . . . Escape Stasis . | . . . Rewire . | . . . Trap . | . . . Miscellaneous . | . . . Route ------- -11/Scrapyard -10/Materials (discovered 4 exits: [*Mat x3] / *Min) -10/Mines (discovered 2 exits: [*Mat x2]) History --------- Turn | Location | Event 16 | -11/Scrapyard | Discovered new exit (range 15) 207 | -11/Scrapyard | Entered Materials 264 | -10/Materials | Discovered new exit (range 15) 302 | -10/Materials | Build established: Mutant 333 | -10/Materials | Discovered new exit (range 12) 724 | -10/Materials | Discovered new exit (range 7) 1025 | -10/Materials | Identified exit to Mines 1079 | -10/Materials | Discovered new exit (range 6) 1375 | -10/Materials | Entered Mines 1384 | -10/Mines | Met a Derelict bent on vengeance 1393 | -10/Mines | Discovered new exit (range 12) 1695 | -10/Mines | A weapon hastily lodged in a ceiling crevice suddenly fell to the ground 1729 | -10/Mines | Discovered new exit (range 11) 1770 | -10/Mines | Assembled infested the area 1798 | -10/Mines | Core integrity fell below 50% 1803 | -10/Mines | Core integrity fell below 20% 1831 | -10/Mines | Lost 6 parts (1p1n2u2w) 1855 | -10/Mines | Core destroyed Last Messages --------------- 01794_ as-42472 destroyed. 01796_ The unstable cave ceiling collapses. 01797_ Seismic Detector destroyed. 01800_ Mak. Shrapnel Gun destroyed. 01800_ Aluminum Leg destroyed. 01801_ The unstable cave ceiling collapses. 01801_ Dropped Aluminum Leg. 01802_ The unstable cave ceiling collapses. 01804_ as-02396 destroyed. 01804_ D-53 Grenadier destroyed. 01804_ as-04596 destroyed. 01804_ D-53 Grenadier destroyed. 01805_ System corrupted: Component data lost. 01805_ The unstable cave ceiling collapses. [Achievement: Slippery One] 01823_ System corrupted: Heat flow error (+170). 01829_ Searching scrap... 01829_ Found Sml. Laser. 01829_ Found 15 Matter. 01855_ Slammed into K-01 Serf. Map ----- +----------------------------------------------------+ | ?## ##########????????????????????????######## | | ## ##?????????????????????????????????# | | # ##???????##????????????????????????# < | | #???????# ?????????????????????# ## | | ##??????# #????????????????????# ## ## | | ####???# #????????????????????# ???# # | | #???# #??????????????????????????# !! # | | "" ## #???# #??????????????????????????# ! ! # | | "" ## #???# #??????????????????????????# ! # | | "" ### #???# #??????????????????????????# !!! # | | ### ##### #??????????????????????????# | | % #??????????????????????????###### | | [ #??????????????????????????????## # | | ########## #####???????????????????????? ??????# # | | ?????????# #????????????????????? ?????????????# # | | ?????????# #??????????????????????????????????## # | | ?????????# #???????????????????????????# ###### # | | ?????????# #???????????????????????????# | | ?????????# #?????????????????????????????##### | | ?????????# #????????????????????????????#????# | | ?????##### #?????????????????????????#???????# | | ?????# #???????????????????????????????#?## # | | ?????# ### #??????????????????????????????????#### | | ?????????# #????????????????????????#????????????? | | ?????????# #################### """s?????????????? | | ?????????# @k u """ ?????????????? | | ?????????###################### #????????????? | | ????????????????????????????????????????#????????? | | ?????????????????????????????????????????????????? | | ?????????????????????????????????????????????????? | | ?????????????????????????????????????????????????? | | | | | | | | | | | | | | | | | | | | | | | | | | | | | | | | | | | | | | | +----------------------------------------------------+ Best States ------------- Heat Dissipation 25 Energy Generation 10 Energy Capacity 250 Matter Stores 300 Matter Capacity 300 Sight Range 16 Terrain Scan Range 16 Terrain Scan Density 10 Resistance: KI 20 Resistance: TH 20 Resistance: EX 20 Resistance: EM 20 Resistance: I 20 Resistance: S 20 Resistance: P 20 Evasion (%) 55 Offensive Hacking 10 Item Schematics ----------------- None Robot Schematics ------------------ None Fabricated ------------ Nothing Alien Tech Used ----------------- None Achievements -------------- Slippery One Challenges ------------ None Game ------ Seed InsulatedMomentumPlating Manual? 0 Play Time 00:15:45 Cumulative 56.6 hours Start 2022.07.07 @ 05:51:37 End 2022.07.07 @ 06:07:18 Sessions 1 Manual Loads 0 Difficulty Adventurer Special Mode None Game No. 61 Rogue 0 Adventurer 61 Explorer 0 Win Type - Total 0 Types 0/0/0/0/0/0/0/0/0 Lore% 34 Gallery% 45 Achievement% 31 Wizard Run 0 Options --------- ASCII 0 Keyboard 0 Movement Mouse Keybinds 0 Fullscreen 1 Font 24/Smallcaps Map View 113x50 Tactical HUD 1 Map Filters NONE Filters NONE Steam 1 RUN: 81ca6a97-95ba-4beb-b9f8-784586fa5795